[Event "Titled Tuesday Blitz May 16 Late 2023"]
[White "Tristan, Leonardo"]
[Black "koncheto"]
[WhiteFideId "113816"]
[WhiteElo "2461"]
[BlackElo "2595"]
[Result "0-1"]
[Round "10"]
[TimeControl "180+2"]
[Date "2023.05.16"]
[WhiteClock "0:00:00"]
[BlackClock "0:00:16"]

1. d4 {[%clk 0:03:00]}  Nf6 {[%clk 0:02:59]} 2. Nf3 {[%clk 0:03:01]}  e6 {[%clk 0:02:59]} 3. Bf4 {[%clk 0:03:01]}  c5 {[%clk 0:02:59]} 4. c3 {[%clk 0:03:00]}  d5 {[%clk 0:03:00]} 5. e3 {[%clk 0:03:00]}  Bd6 {[%clk 0:03:00]} 6. Bb5+ {[%clk 0:02:59]}  Nc6 {[%clk 0:02:55]} 7. Bg3 {[%clk 0:02:59]}  O-O {[%clk 0:02:53]} 8. Nbd2 {[%clk 0:02:59]}  Bxg3 {[%clk 0:02:43]} 9. hxg3 {[%clk 0:02:57]}  Qe7 {[%clk 0:02:43]} 10. Bxc6 {[%clk 0:02:42]}  bxc6 {[%clk 0:02:43]} 11. Ne5 {[%clk 0:02:42]}  cxd4 {[%clk 0:02:24]} 12. cxd4 {[%clk 0:02:02]}  c5 {[%clk 0:02:23]} 13. g4 {[%clk 0:01:32]}  cxd4 {[%clk 0:01:57]} 14. exd4 {[%clk 0:01:27]}  Qb4 {[%clk 0:01:55]} 15. g5 {[%clk 0:01:25]}  Ne4 {[%clk 0:01:20]} 16. Nc6 {[%clk 0:01:25]}  Qd6 {[%clk 0:00:42]} 17. Nxe4 {[%clk 0:00:52]}  dxe4 {[%clk 0:00:42]} 18. Qh5 {[%clk 0:00:52]}  h6 {[%clk 0:00:40]} 19. gxh6 {[%clk 0:00:50]}  g6 {[%clk 0:00:40]} 20. Qg5 {[%clk 0:00:30]}  Kh7 {[%clk 0:00:19]} 21. Qf6 {[%clk 0:00:30]}  Rg8 {[%clk 0:00:19]} 22. Qxf7+ {[%clk 0:00:16]}  Kh8 {[%clk 0:00:19]} 23. Qf6+ {[%clk 0:00:12]}  Kh7 {[%clk 0:00:19]} 24. Ne7 {[%clk 0:00:08]}  Qb4+ {[%clk 0:00:17]} 25. Kf1 {[%clk 0:00:06]}  Ba6+ {[%clk 0:00:17]} 26. Kg1 {[%clk 0:00:06]}  Raf8 {[%clk 0:00:18]} 27. Nxg8 {[%clk 0:00:04]}  Rxf6 {[%clk 0:00:16]} 28. Nxf6+ {[%clk 0:00:05]}  Kh8 {[%clk 0:00:17]} 29. Rc1 {[%clk 0:00:03]}  Bc4 {[%clk 0:00:17]} 30. b3 {[%clk 0:00:03]}  Ba6 {[%clk 0:00:17]} 31. Rc6 {[%clk 0:00:03]}  Qe1+ {[%clk 0:00:15]} 32. Kh2 {[%clk 0:00:02]}  Qxf2 {[%clk 0:00:16]} 33. Rxa6 {[%clk 0:00:01]}  Qh4+ {[%clk 0:00:15]} 34. Kg1 {[%clk 0:00:01]}  Qxf6 {[%clk 0:00:15]} 35. Rxa7 {[%clk 0:00:01]}  Qxd4+ {[%clk 0:00:15]} 36. Kh2 {[%clk 0:00:00]}  Qxa7 {[%clk 0:00:16]} 0-1


[Site "https://www.chess.com"]

[Event "Titled Tuesday Blitz May 16 Late 2023"]
[White "Pakleza, Zbigniew"]
[Black "Rosen, Eric"]
[WhiteFideId "1119290"]
[BlackFideId "2032562"]
[WhiteElo "2410"]
[BlackElo "2331"]
[Result "0-1"]
[Round "10"]
[TimeControl "180+2"]
[Date "2023.05.16"]
[WhiteClock "0:00:08"]
[BlackClock "0:00:32"]

1. b4 {[%clk 0:03:00]}  e5 {[%clk 0:02:59]} 2. a3 {[%clk 0:02:59]}  a5 {[%clk 0:02:57]} 3. b5 {[%clk 0:02:58]}  Bd6 {[%clk 0:02:58]} 4. d3 {[%clk 0:02:53]}  c6 {[%clk 0:02:53]} 5. a4 {[%clk 0:02:53]}  Bc7 {[%clk 0:02:50]} 6. e4 {[%clk 0:02:50]}  Nf6 {[%clk 0:02:47]} 7. Nf3 {[%clk 0:02:49]}  O-O {[%clk 0:02:46]} 8. Be2 {[%clk 0:02:44]}  d5 {[%clk 0:02:46]} 9. Nbd2 {[%clk 0:02:44]}  Re8 {[%clk 0:02:44]} 10. O-O {[%clk 0:02:44]}  Nbd7 {[%clk 0:02:44]} 11. Re1 {[%clk 0:02:40]}  Nf8 {[%clk 0:02:44]} 12. Bf1 {[%clk 0:02:36]}  Ng6 {[%clk 0:02:44]} 13. Rb1 {[%clk 0:02:34]}  Bb6 {[%clk 0:02:40]} 14. h3 {[%clk 0:02:30]}  Nh5 {[%clk 0:02:33]} 15. c4 {[%clk 0:02:11]}  Ng3 {[%clk 0:02:11]} 16. bxc6 {[%clk 0:02:02]}  bxc6 {[%clk 0:02:11]} 17. cxd5 {[%clk 0:01:56]}  cxd5 {[%clk 0:02:04]} 18. exd5 {[%clk 0:01:56]}  Nxf1 {[%clk 0:02:01]} 19. Nc4 {[%clk 0:01:29]}  Bc7 {[%clk 0:01:45]} 20. Kxf1 {[%clk 0:00:41]}  Qxd5 {[%clk 0:01:42]} 21. Rb5 {[%clk 0:00:33]}  Qd8 {[%clk 0:01:28]} 22. Kg1 {[%clk 0:00:24]}  f6 {[%clk 0:01:19]} 23. Qb3 {[%clk 0:00:22]}  Be6 {[%clk 0:01:19]} 24. Ba3 {[%clk 0:00:20]}  Kh8 {[%clk 0:01:19]} 25. Qc3 {[%clk 0:00:15]}  Nf4 {[%clk 0:01:13]} 26. d4 {[%clk 0:00:13]}  Bd7 {[%clk 0:00:40]} 27. Rc5 {[%clk 0:00:12]}  e4 {[%clk 0:00:39]} 28. Nfd2 {[%clk 0:00:11]}  f5 {[%clk 0:00:37]} 29. Rb1 {[%clk 0:00:08]}  Ne2+ {[%clk 0:00:32]} 0-1


[Site "https://www.chess.com"]

[Event "Titled Tuesday Blitz May 16 Late 2023"]
[White "Klukin, Kirill"]
[Black "Schnaider, Ilan"]
[WhiteFideId "24199273"]
[BlackFideId "169013"]
[WhiteElo "2344"]
[BlackElo "2224"]
[Result "1-0"]
[Round "10"]
[TimeControl "180+2"]
[Date "2023.05.16"]
[WhiteClock "0:00:47"]
[BlackClock "0:00:00"]

1. f4 {[%clk 0:03:00]}  e5 {[%clk 0:02:55]} 2. fxe5 {[%clk 0:03:00]}  d6 {[%clk 0:02:56]} 3. Nf3 {[%clk 0:03:01]}  dxe5 {[%clk 0:02:56]} 4. e4 {[%clk 0:03:02]}  Nf6 {[%clk 0:02:55]} 5. Bc4 {[%clk 0:03:01]}  Bc5 {[%clk 0:02:52]} 6. Qe2 {[%clk 0:03:01]}  O-O {[%clk 0:02:50]} 7. c3 {[%clk 0:02:58]}  Nc6 {[%clk 0:02:50]} 8. d3 {[%clk 0:02:58]}  Na5 {[%clk 0:02:43]} 9. Bb3 {[%clk 0:02:54]}  Nxb3 {[%clk 0:02:43]} 10. axb3 {[%clk 0:02:55]}  Bg4 {[%clk 0:02:42]} 11. Bg5 {[%clk 0:02:55]}  h6 {[%clk 0:02:40]} 12. Bh4 {[%clk 0:02:54]}  Qd6 {[%clk 0:02:40]} 13. Nbd2 {[%clk 0:02:54]}  Nh5 {[%clk 0:02:28]} 14. Nc4 {[%clk 0:02:50]}  Qe6 {[%clk 0:02:15]} 15. Ncxe5 {[%clk 0:02:27]}  Nf4 {[%clk 0:01:29]} 16. Qc2 {[%clk 0:02:20]}  Be3 {[%clk 0:00:39]} 17. Nc4 {[%clk 0:02:13]}  Bxf3 {[%clk 0:00:21]} 18. Nxe3 {[%clk 0:02:07]}  Nxg2+ {[%clk 0:00:14]} 19. Nxg2 {[%clk 0:02:06]}  Qh3 {[%clk 0:00:14]} 20. Rg1 {[%clk 0:02:02]}  Bxg2 {[%clk 0:00:13]} 21. Qxg2 {[%clk 0:02:02]}  Qxh4+ {[%clk 0:00:14]} 22. Qg3 {[%clk 0:02:00]}  Qf6 {[%clk 0:00:13]} 23. O-O-O {[%clk 0:02:00]}  g6 {[%clk 0:00:10]} 24. Rdf1 {[%clk 0:02:00]}  Qb6 {[%clk 0:00:10]} 25. h4 {[%clk 0:01:57]}  h5 {[%clk 0:00:08]} 26. Qg5 {[%clk 0:01:56]}  Kg7 {[%clk 0:00:07]} 27. e5 {[%clk 0:01:55]}  Rae8 {[%clk 0:00:04]} 28. Rf6 {[%clk 0:01:55]}  Re6 {[%clk 0:00:05]} 29. Rgf1 {[%clk 0:01:46]}  Rxf6 {[%clk 0:00:03]} 30. Rxf6 {[%clk 0:01:35]}  Qa5 {[%clk 0:00:03]} 31. b4 {[%clk 0:01:30]}  Qd5 {[%clk 0:00:03]} 32. d4 {[%clk 0:01:22]}  b6 {[%clk 0:00:03]} 33. Qf4 {[%clk 0:01:06]}  Rd8 {[%clk 0:00:03]} 34. Qg5 {[%clk 0:01:05]}  c5 {[%clk 0:00:02]} 35. bxc5 {[%clk 0:00:48]}  bxc5 {[%clk 0:00:03]} 36. Rf4 {[%clk 0:00:49]}  Qa2 {[%clk 0:00:02]} 37. Qf6+ {[%clk 0:00:48]}  Kh6 {[%clk 0:00:01]} 38. Qxd8 {[%clk 0:00:47]}  Qa1+ {[%clk 0:00:02]} 39. Kc2 {[%clk 0:00:47]}  Qa4+ {[%clk 0:00:02]} 40. Kd2 {[%clk 0:00:48]}  Kg7 {[%clk 0:00:00]} 41. Qf6+ {[%clk 0:00:47]} 1-0


[Site "https://www.chess.com"]

[Event "Titled Tuesday Blitz May 16 Late 2023"]
[White "Sun, Rick"]
[Black "Martic, Ivan"]
[WhiteFideId "30909481"]
[BlackFideId "929301"]
[WhiteElo "2169"]
[BlackElo "2360"]
[Result "1-0"]
[Round "10"]
[TimeControl "180+2"]
[Date "2023.05.16"]
[WhiteClock "0:00:08"]
[BlackClock "0:00:41"]

1. d4 {[%clk 0:03:00]}  d5 {[%clk 0:02:58]} 2. Nc3 {[%clk 0:03:01]}  c6 {[%clk 0:02:58]} 3. Bf4 {[%clk 0:03:01]}  Nf6 {[%clk 0:02:57]} 4. e3 {[%clk 0:03:01]}  Bf5 {[%clk 0:02:56]} 5. f3 {[%clk 0:03:01]}  h5 {[%clk 0:02:56]} 6. Bd3 {[%clk 0:03:01]}  e6 {[%clk 0:02:55]} 7. Nge2 {[%clk 0:03:00]}  Bxd3 {[%clk 0:02:51]} 8. Qxd3 {[%clk 0:03:01]}  Nbd7 {[%clk 0:02:51]} 9. O-O-O {[%clk 0:02:59]}  Qa5 {[%clk 0:02:51]} 10. Kb1 {[%clk 0:02:57]}  Nb6 {[%clk 0:02:48]} 11. Nc1 {[%clk 0:02:48]}  Nc4 {[%clk 0:02:43]} 12. Nb3 {[%clk 0:02:45]}  Qa6 {[%clk 0:02:42]} 13. e4 {[%clk 0:02:34]}  Bb4 {[%clk 0:02:41]} 14. e5 {[%clk 0:01:54]}  Nd7 {[%clk 0:02:37]} 15. g4 {[%clk 0:01:47]}  h4 {[%clk 0:02:36]} 16. Bc1 {[%clk 0:01:39]}  Ndb6 {[%clk 0:02:36]} 17. f4 {[%clk 0:01:31]}  Na4 {[%clk 0:02:16]} 18. Nxa4 {[%clk 0:01:11]}  Qxa4 {[%clk 0:02:16]} 19. f5 {[%clk 0:01:04]}  O-O-O {[%clk 0:02:16]} 20. Rhf1 {[%clk 0:00:54]}  a5 {[%clk 0:02:02]} 21. fxe6 {[%clk 0:00:49]}  fxe6 {[%clk 0:02:03]} 22. Qg6 {[%clk 0:00:49]}  Rhe8 {[%clk 0:02:00]} 23. Rf7 {[%clk 0:00:45]}  Qb5 {[%clk 0:01:54]} 24. Qxg7 {[%clk 0:00:21]}  a4 {[%clk 0:01:53]} 25. g5 {[%clk 0:00:14]}  axb3 {[%clk 0:01:50]} 26. axb3 {[%clk 0:00:15]}  Ba5 {[%clk 0:01:40]} 27. bxc4 {[%clk 0:00:13]}  dxc4 {[%clk 0:01:40]} 28. g6 {[%clk 0:00:10]}  Bc3 {[%clk 0:01:36]} 29. Rf3 {[%clk 0:00:07]}  Bxd4 {[%clk 0:01:30]} 30. Rdf1 {[%clk 0:00:06]}  Bxe5 {[%clk 0:01:25]} 31. Qf7 {[%clk 0:00:07]}  Rg8 {[%clk 0:00:59]} 32. Qxe6+ {[%clk 0:00:06]}  Kb8 {[%clk 0:00:57]} 33. Rf5 {[%clk 0:00:07]}  Rge8 {[%clk 0:00:54]} 34. Rxe5 {[%clk 0:00:07]}  Qxe5 {[%clk 0:00:53]} 35. Qxe5+ {[%clk 0:00:08]}  Rxe5 {[%clk 0:00:54]} 36. Bf4 {[%clk 0:00:08]}  Re8 {[%clk 0:00:46]} 37. Re1 {[%clk 0:00:08]}  Ka7 {[%clk 0:00:46]} 38. Bxe5 {[%clk 0:00:08]}  h3 {[%clk 0:00:41]} 39. Bd4+ {[%clk 0:00:08]} 1-0


[Site "https://www.chess.com"]

[Event "Titled Tuesday Blitz May 16 Late 2023"]
[White "Geivondian, Arman"]
[Black "Harshavardhan G B"]
[WhiteFideId "24102032"]
[BlackFideId "25059009"]
[WhiteElo "2278"]
[BlackElo "2323"]
[Result "1-0"]
[Round "10"]
[TimeControl "180+2"]
[Date "2023.05.16"]
[WhiteClock "0:01:12"]
[BlackClock "0:00:09"]

1. e4 {[%clk 0:03:00]}  e5 {[%clk 0:02:54]} 2. Nf3 {[%clk 0:03:01]}  Nc6 {[%clk 0:02:50]} 3. Nc3 {[%clk 0:03:01]}  Nf6 {[%clk 0:02:49]} 4. h3 {[%clk 0:03:01]}  g6 {[%clk 0:02:47]} 5. d4 {[%clk 0:03:00]}  exd4 {[%clk 0:02:47]} 6. Nxd4 {[%clk 0:03:01]}  Bg7 {[%clk 0:02:46]} 7. Be3 {[%clk 0:03:02]}  O-O {[%clk 0:02:46]} 8. Bc4 {[%clk 0:03:02]}  d6 {[%clk 0:02:45]} 9. O-O {[%clk 0:03:02]}  Qe7 {[%clk 0:02:45]} 10. Bg5 {[%clk 0:02:56]}  h6 {[%clk 0:02:42]} 11. Bxf6 {[%clk 0:02:55]}  Qxf6 {[%clk 0:02:42]} 12. Ndb5 {[%clk 0:02:52]}  Qd8 {[%clk 0:02:38]} 13. Nd5 {[%clk 0:02:51]}  Ne5 {[%clk 0:02:36]} 14. Nbxc7 {[%clk 0:02:33]}  Nxc4 {[%clk 0:02:35]} 15. Nxa8 {[%clk 0:02:34]}  Nxb2 {[%clk 0:02:32]} 16. Qe2 {[%clk 0:02:33]}  Bxh3 {[%clk 0:02:29]} 17. gxh3 {[%clk 0:02:30]}  Qxa8 {[%clk 0:02:29]} 18. Rab1 {[%clk 0:02:30]}  b6 {[%clk 0:02:22]} 19. Qb5 {[%clk 0:02:26]}  Qe8 {[%clk 0:02:15]} 20. Rxb2 {[%clk 0:02:23]}  Qxe4 {[%clk 0:02:14]} 21. Rb3 {[%clk 0:02:22]}  Kh7 {[%clk 0:02:04]} 22. Qd3 {[%clk 0:02:22]}  Qh4 {[%clk 0:01:59]} 23. Qg3 {[%clk 0:02:19]}  Qc4 {[%clk 0:01:53]} 24. Ne3 {[%clk 0:02:19]}  Qe6 {[%clk 0:01:50]} 25. Rd1 {[%clk 0:02:17]}  Rd8 {[%clk 0:01:47]} 26. Rbd3 {[%clk 0:02:17]}  Be5 {[%clk 0:01:47]} 27. Qf3 {[%clk 0:02:15]}  f5 {[%clk 0:01:43]} 28. Qd5 {[%clk 0:02:13]}  Qf6 {[%clk 0:01:40]} 29. Nc4 {[%clk 0:02:13]}  Bf4 {[%clk 0:01:37]} 30. Qf3 {[%clk 0:02:10]}  Qg5+ {[%clk 0:01:33]} 31. Qg2 {[%clk 0:02:10]}  Qe7 {[%clk 0:01:30]} 32. Ne3 {[%clk 0:02:06]}  Be5 {[%clk 0:01:25]} 33. Nd5 {[%clk 0:02:06]}  Qf7 {[%clk 0:01:13]} 34. Re3 {[%clk 0:02:03]}  f4 {[%clk 0:01:07]} 35. Re4 {[%clk 0:02:02]}  Rc8 {[%clk 0:00:55]} 36. Rd2 {[%clk 0:01:49]}  Rc5 {[%clk 0:00:48]} 37. Nb4 {[%clk 0:01:30]}  Bc3 {[%clk 0:00:27]} 38. Rde2 {[%clk 0:01:19]}  f3 {[%clk 0:00:15]} 39. Re7 {[%clk 0:01:19]}  Rf5 {[%clk 0:00:15]} 40. Rxf7+ {[%clk 0:01:15]}  Rxf7 {[%clk 0:00:16]} 41. Qg4 {[%clk 0:01:11]}  fxe2 {[%clk 0:00:13]} 42. Qxe2 {[%clk 0:01:12]}  Bxb4 {[%clk 0:00:13]} 43. Qc4 {[%clk 0:01:12]}  Rf3 {[%clk 0:00:10]} 44. Qxb4 {[%clk 0:01:12]}  Rxh3 {[%clk 0:00:10]} 45. Qxd6 {[%clk 0:01:12]}  Rf3 {[%clk 0:00:06]} 46. Qc7+ {[%clk 0:01:12]}  Kg8 {[%clk 0:00:05]} 47. Qxa7 {[%clk 0:01:12]}  Rf6 {[%clk 0:00:05]} 48. Qe7 {[%clk 0:01:12]}  Rf7 {[%clk 0:00:04]} 49. Qe6 {[%clk 0:01:12]}  Kg7 {[%clk 0:00:04]} 50. Qxb6 {[%clk 0:01:12]}  h5 {[%clk 0:00:05]} 51. a4 {[%clk 0:01:10]}  g5 {[%clk 0:00:06]} 52. a5 {[%clk 0:01:11]}  h4 {[%clk 0:00:06]} 53. a6 {[%clk 0:01:11]}  g4 {[%clk 0:00:07]} 54. a7 {[%clk 0:01:11]}  Rf8 {[%clk 0:00:08]} 55. Qd4+ {[%clk 0:01:10]}  Kh6 {[%clk 0:00:08]} 56. Qxg4 {[%clk 0:01:11]}  Ra8 {[%clk 0:00:08]} 57. Qe6+ {[%clk 0:01:10]}  Kh5 {[%clk 0:00:08]} 58. Qd5+ {[%clk 0:01:11]}  Kg4 {[%clk 0:00:08]} 59. Qxa8 {[%clk 0:01:12]}  Kh3 {[%clk 0:00:09]} 60. Qg2# {[%clk 0:01:12]} 1-0


[Site "https://www.chess.com"]

[Event "Titled Tuesday Blitz May 16 Late 2023"]
[White "TimGrutter03"]
[Black "Tomaszewski, Kacper"]
[BlackFideId "1127373"]
[WhiteElo "2634"]
[BlackElo "2211"]
[Result "1-0"]
[Round "10"]
[TimeControl "180+2"]
[Date "2023.05.16"]
[WhiteClock "0:00:02"]
[BlackClock "0:00:00"]

1. e4 {[%clk 0:02:59]}  d6 {[%clk 0:02:59]} 2. d4 {[%clk 0:02:59]}  Nf6 {[%clk 0:02:59]} 3. Nc3 {[%clk 0:03:00]}  e5 {[%clk 0:02:59]} 4. Nf3 {[%clk 0:02:56]}  Nbd7 {[%clk 0:02:59]} 5. g4 {[%clk 0:02:54]}  Nxg4 {[%clk 0:02:52]} 6. Rg1 {[%clk 0:02:54]}  Ngf6 {[%clk 0:02:51]} 7. Bg5 {[%clk 0:02:52]}  Be7 {[%clk 0:02:49]} 8. Qd2 {[%clk 0:02:52]}  h6 {[%clk 0:02:48]} 9. Be3 {[%clk 0:02:51]}  g5 {[%clk 0:02:28]} 10. O-O-O {[%clk 0:02:45]}  Kf8 {[%clk 0:02:20]} 11. h4 {[%clk 0:02:42]}  g4 {[%clk 0:02:19]} 12. Bxh6+ {[%clk 0:02:41]}  Ke8 {[%clk 0:02:16]} 13. Nh2 {[%clk 0:02:13]}  exd4 {[%clk 0:02:14]} 14. Nd5 {[%clk 0:01:52]}  Nxe4 {[%clk 0:02:12]} 15. Qf4 {[%clk 0:01:51]}  Ndc5 {[%clk 0:01:34]} 16. b4 {[%clk 0:01:29]}  Ne6 {[%clk 0:01:25]} 17. Qxe4 {[%clk 0:01:25]}  Rxh6 {[%clk 0:01:25]} 18. Nxg4 {[%clk 0:01:07]}  Rxh4 {[%clk 0:01:24]} 19. Ngf6+ {[%clk 0:01:07]}  Bxf6 {[%clk 0:01:23]} 20. Rg8+ {[%clk 0:01:07]}  Kd7 {[%clk 0:01:20]} 21. Rxd8+ {[%clk 0:01:06]}  Bxd8 {[%clk 0:01:21]} 22. Qf5 {[%clk 0:00:50]}  Ke8 {[%clk 0:00:49]} 23. Nf6+ {[%clk 0:00:40]}  Kf8 {[%clk 0:00:46]} 24. Bc4 {[%clk 0:00:28]}  Rf4 {[%clk 0:00:27]} 25. Nh7+ {[%clk 0:00:20]}  Ke8 {[%clk 0:00:26]} 26. Qd3 {[%clk 0:00:10]}  Rh4 {[%clk 0:00:17]} 27. Rg1 {[%clk 0:00:09]}  Kd7 {[%clk 0:00:08]} 28. Rg8 {[%clk 0:00:08]}  c6 {[%clk 0:00:08]} 29. Bxe6+ {[%clk 0:00:05]}  fxe6 {[%clk 0:00:08]} 30. Nf8+ {[%clk 0:00:04]}  Kc7 {[%clk 0:00:07]} 31. Qg6 {[%clk 0:00:03]}  e5 {[%clk 0:00:02]} 32. Kb1 {[%clk 0:00:02]}  Kb6 {[%clk 0:00:02]} 33. Ne6 {[%clk 0:00:01]}  Bxe6 {[%clk 0:00:02]} 34. Qxe6 {[%clk 0:00:02]}  Rh1+ {[%clk 0:00:02]} 35. Kb2 {[%clk 0:00:03]}  d3 {[%clk 0:00:01]} 36. cxd3 {[%clk 0:00:02]}  e4 {[%clk 0:00:02]} 37. d4 {[%clk 0:00:03]}  d5 {[%clk 0:00:00]} 38. Qd7 {[%clk 0:00:02]} 1-0


[Site "https://www.chess.com"]

[Event "Titled Tuesday Blitz May 16 Late 2023"]
[White "cryptoguru02"]
[Black "Liu, Casper"]
[BlackFideId "1454153"]
[WhiteElo "2619"]
[BlackElo "2221"]
[Result "0-1"]
[Round "10"]
[TimeControl "180+2"]
[Date "2023.05.16"]
[WhiteClock "0:00:01"]
[BlackClock "0:00:10"]

1. d4 {[%clk 0:03:00]}  Nf6 {[%clk 0:02:59]} 2. c4 {[%clk 0:03:00]}  g6 {[%clk 0:03:00]} 3. Nc3 {[%clk 0:02:59]}  d5 {[%clk 0:03:00]} 4. Bf4 {[%clk 0:02:59]}  Bg7 {[%clk 0:03:00]} 5. e3 {[%clk 0:02:59]}  c6 {[%clk 0:03:00]} 6. Rc1 {[%clk 0:02:59]}  O-O {[%clk 0:03:00]} 7. Nf3 {[%clk 0:02:59]}  Be6 {[%clk 0:03:00]} 8. Qb3 {[%clk 0:02:51]}  Qc8 {[%clk 0:02:55]} 9. Be2 {[%clk 0:02:44]}  Nbd7 {[%clk 0:02:55]} 10. O-O {[%clk 0:02:41]}  Nb6 {[%clk 0:02:55]} 11. c5 {[%clk 0:02:37]}  Nbd7 {[%clk 0:02:55]} 12. h3 {[%clk 0:02:38]}  Ne4 {[%clk 0:02:53]} 13. Bd3 {[%clk 0:02:29]}  Ndf6 {[%clk 0:02:52]} 14. Be5 {[%clk 0:02:23]}  h6 {[%clk 0:02:42]} 15. Qc2 {[%clk 0:02:21]}  g5 {[%clk 0:02:33]} 16. a4 {[%clk 0:02:06]}  Kh8 {[%clk 0:02:16]} 17. Nxe4 {[%clk 0:01:56]}  dxe4 {[%clk 0:02:10]} 18. Bxe4 {[%clk 0:01:54]}  Nxe4 {[%clk 0:02:09]} 19. Bxg7+ {[%clk 0:01:49]}  Kxg7 {[%clk 0:02:09]} 20. Qxe4 {[%clk 0:01:50]}  Bd5 {[%clk 0:01:59]} 21. Qe5+ {[%clk 0:01:42]}  Kg6 {[%clk 0:01:54]} 22. Qg3 {[%clk 0:01:39]}  f6 {[%clk 0:01:49]} 23. Nd2 {[%clk 0:01:39]}  Kh7 {[%clk 0:01:46]} 24. e4 {[%clk 0:01:38]}  Bf7 {[%clk 0:01:46]} 25. b4 {[%clk 0:01:35]}  Qd7 {[%clk 0:01:46]} 26. Qe3 {[%clk 0:01:26]}  Rad8 {[%clk 0:01:46]} 27. Nf3 {[%clk 0:01:25]}  Rg8 {[%clk 0:01:44]} 28. Rfd1 {[%clk 0:00:46]}  g4 {[%clk 0:01:42]} 29. hxg4 {[%clk 0:00:47]}  Qxg4 {[%clk 0:01:37]} 30. Ne1 {[%clk 0:00:45]}  Be6 {[%clk 0:01:27]} 31. d5 {[%clk 0:00:36]}  Bc8 {[%clk 0:01:22]} 32. d6 {[%clk 0:00:31]}  exd6 {[%clk 0:01:22]} 33. cxd6 {[%clk 0:00:32]}  Rg5 {[%clk 0:01:11]} 34. b5 {[%clk 0:00:29]}  Rdg8 {[%clk 0:00:54]} 35. f3 {[%clk 0:00:28]}  Qh3 {[%clk 0:00:47]} 36. Rc2 {[%clk 0:00:24]}  Rh5 {[%clk 0:00:41]} 37. Kf1 {[%clk 0:00:18]}  Qh1+ {[%clk 0:00:40]} 38. Ke2 {[%clk 0:00:18]}  Be6 {[%clk 0:00:38]} 39. d7 {[%clk 0:00:16]}  Rxg2+ {[%clk 0:00:30]} 40. Nxg2 {[%clk 0:00:17]}  Qxg2+ {[%clk 0:00:31]} 41. Kd3 {[%clk 0:00:17]}  Qg8 {[%clk 0:00:30]} 42. Kc3 {[%clk 0:00:16]}  Qd8 {[%clk 0:00:30]} 43. Rcd2 {[%clk 0:00:16]}  cxb5 {[%clk 0:00:30]} 44. axb5 {[%clk 0:00:16]}  Rxb5 {[%clk 0:00:30]} 45. Rd6 {[%clk 0:00:16]}  Qa5+ {[%clk 0:00:30]} 46. Kd3 {[%clk 0:00:15]}  Rb3+ {[%clk 0:00:20]} 47. Ke2 {[%clk 0:00:15]}  Bc4+ {[%clk 0:00:20]} 48. Kf2 {[%clk 0:00:14]}  Rxe3 {[%clk 0:00:21]} 49. d8=Q {[%clk 0:00:12]}  Re2+ {[%clk 0:00:21]} 50. Kf1 {[%clk 0:00:08]}  Rd2+ {[%clk 0:00:19]} 51. Ke1 {[%clk 0:00:04]}  Re2+ {[%clk 0:00:09]} 52. Kf1 {[%clk 0:00:04]}  Rxe4+ {[%clk 0:00:09]} 53. Kg2 {[%clk 0:00:02]}  Re2+ {[%clk 0:00:09]} 54. Kf1 {[%clk 0:00:02]}  Re8+ {[%clk 0:00:09]} 55. Kg2 {[%clk 0:00:02]}  Qg5+ {[%clk 0:00:09]} 56. Kf2 {[%clk 0:00:02]}  Re2+ {[%clk 0:00:09]} 57. Kf1 {[%clk 0:00:01]}  Qg2# {[%clk 0:00:10]} 0-1


[Site "https://www.chess.com"]

[Event "Titled Tuesday Blitz May 16 Late 2023"]
[White "Saveliev, Alexei"]
[Black "Shapiro, Viktor"]
[WhiteFideId "24128546"]
[BlackFideId "4175700"]
[WhiteElo "2271"]
[BlackElo "2152"]
[Result "1-0"]
[Round "10"]
[TimeControl "180+2"]
[Date "2023.05.16"]
[WhiteClock "0:00:04"]
[BlackClock "0:00:01"]

1. c4 {[%clk 0:03:00]}  Nf6 {[%clk 0:03:00]} 2. Nc3 {[%clk 0:02:59]}  c5 {[%clk 0:03:00]} 3. g3 {[%clk 0:02:57]}  Nc6 {[%clk 0:03:00]} 4. Bg2 {[%clk 0:02:57]}  g6 {[%clk 0:03:01]} 5. h4 {[%clk 0:02:47]}  Bg7 {[%clk 0:03:01]} 6. Nf3 {[%clk 0:02:45]}  d6 {[%clk 0:02:59]} 7. d3 {[%clk 0:02:42]}  h5 {[%clk 0:02:56]} 8. Bg5 {[%clk 0:02:39]}  a6 {[%clk 0:02:56]} 9. Rb1 {[%clk 0:02:37]}  Rb8 {[%clk 0:02:56]} 10. Nd2 {[%clk 0:02:22]}  Bd7 {[%clk 0:02:56]} 11. O-O {[%clk 0:02:17]}  b5 {[%clk 0:02:56]} 12. Nd5 {[%clk 0:02:07]}  Nxd5 {[%clk 0:02:52]} 13. cxd5 {[%clk 0:02:07]}  Ne5 {[%clk 0:02:51]} 14. Ne4 {[%clk 0:01:58]}  Bf5 {[%clk 0:02:28]} 15. Rc1 {[%clk 0:01:31]}  O-O {[%clk 0:02:19]} 16. Qd2 {[%clk 0:01:27]}  Rc8 {[%clk 0:02:17]} 17. Bh6 {[%clk 0:01:23]}  Ng4 {[%clk 0:02:12]} 18. Bxg7 {[%clk 0:01:22]}  Kxg7 {[%clk 0:02:13]} 19. Ng5 {[%clk 0:01:19]}  f6 {[%clk 0:01:56]} 20. Nh3 {[%clk 0:01:14]}  e5 {[%clk 0:01:53]} 21. dxe6 {[%clk 0:01:11]}  Bxe6 {[%clk 0:01:53]} 22. Nf4 {[%clk 0:01:08]}  Bf7 {[%clk 0:01:53]} 23. d4 {[%clk 0:01:02]}  c4 {[%clk 0:01:47]} 24. e4 {[%clk 0:00:33]}  Re8 {[%clk 0:01:45]} 25. Rfe1 {[%clk 0:00:29]}  Qb6 {[%clk 0:01:44]} 26. f3 {[%clk 0:00:25]}  Nh6 {[%clk 0:01:44]} 27. Kh2 {[%clk 0:00:25]}  b4 {[%clk 0:01:43]} 28. Bf1 {[%clk 0:00:20]}  Rc7 {[%clk 0:01:31]} 29. d5 {[%clk 0:00:20]}  Rec8 {[%clk 0:01:30]} 30. Re3 {[%clk 0:00:15]}  a5 {[%clk 0:01:27]} 31. Bh3 {[%clk 0:00:15]}  Re8 {[%clk 0:01:23]} 32. Be6 {[%clk 0:00:14]}  Ree7 {[%clk 0:01:09]} 33. Bxf7 {[%clk 0:00:13]}  Kxf7 {[%clk 0:01:07]} 34. Ne6 {[%clk 0:00:14]}  Rc8 {[%clk 0:01:04]} 35. Ree1 {[%clk 0:00:11]}  Ng8 {[%clk 0:00:42]} 36. Rc2 {[%clk 0:00:11]}  Rb7 {[%clk 0:00:24]} 37. Rec1 {[%clk 0:00:10]}  Qb5 {[%clk 0:00:13]} 38. Kg2 {[%clk 0:00:08]}  a4 {[%clk 0:00:12]} 39. Qf4 {[%clk 0:00:08]}  b3 {[%clk 0:00:09]} 40. axb3 {[%clk 0:00:08]}  axb3 {[%clk 0:00:09]} 41. Rc3 {[%clk 0:00:08]}  Qa6 {[%clk 0:00:09]} 42. Ng5+ {[%clk 0:00:07]}  Kg7 {[%clk 0:00:08]} 43. Ne6+ {[%clk 0:00:08]}  Kf7 {[%clk 0:00:08]} 44. Qe3 {[%clk 0:00:03]}  Rb4 {[%clk 0:00:08]} 45. Qd2 {[%clk 0:00:02]}  Qb7 {[%clk 0:00:07]} 46. Nd4 {[%clk 0:00:03]}  Rc5 {[%clk 0:00:06]} 47. Ne6 {[%clk 0:00:03]}  Rc8 {[%clk 0:00:04]} 48. Qd4 {[%clk 0:00:03]}  Ra4 {[%clk 0:00:04]} 49. Rxc4 {[%clk 0:00:03]}  Raxc4 {[%clk 0:00:03]} 50. Rxc4 {[%clk 0:00:04]}  Rxc4 {[%clk 0:00:04]} 51. Qxc4 {[%clk 0:00:05]}  Ne7 {[%clk 0:00:01]} 52. Nd8+ {[%clk 0:00:04]} 1-0


[Site "https://www.chess.com"]